bitfinex/quotes_ETHUSD_20250222
["timestamp","ask_amount","ask_price","bid_price","bid_amount"]
[1740220257176,0.7617,2746.3,2745.3,3.0]
[1740220257645,0.7617,2746.3,2745.7,3.64192]
[1740220257970,0.7617,2746.0,2744.6,5.3]
[1740220258122,0.7617,2745.6,2745.0,3.64298]
[1740220258327,0.7617,2745.6,2745.1,3.0]
[1740220258557,0.7617,2745.6,2745.1,6.64284]
[1740220258762,0.7617,2745.6,2745.1,3.64284]
[1740220259127,0.7617,2745.6,2744.8,4.3752454]
[1740220259460,1.202086,2745.6,2745.1,3.64284]
[1740220259832,4.40392,2745.6,2745.0,3.64297]
[1740220260138,4.40392,2745.6,2744.9,3.64311]
[1740220260139,0.7617,2745.6,2744.9,3.64311]
[1740220260336,4.27088483,2745.2,2744.5,0.1497027]
[1740220260542,1.24218848,2745.1,2744.5,3.7932427]
[1740220261869,4.88504848,2745.1,2744.5,0.1497027]
[1740220262256,1.24218848,2745.1,2744.5,0.1497027]
[1740220262582,0.8151,2744.9,2744.5,0.1497027]
[1740220263675,3.64251,2745.4,2744.5,0.1497027]
[1740220263676,0.8151,2745.4,2744.5,0.1497027]
[1740220263857,1.42861,2745.4,2744.8,3.64323]
[1740220264062,1.42861,2745.4,2744.6,3.64351]
[1740220264301,0.8151,2745.3,2744.7,3.64337]
[1740220264606,0.8151,2745.3,2744.7,3.64328]
[1740220264749,0.8151,2745.3,2745.0,3.64298]
[1740220264949,1.489961,2745.3,2745.0,3.64298]
[1740220265578,0.7762,2745.2,2744.5,3.7933527]
[1740220265894,0.7762,2745.2,2744.6,3.64351]
[1740220266259,0.7762,2745.2,2744.7,3.64327]
[1740220266445,0.7762,2745.2,2744.9,3.64311]
[1740220266878,0.7762,2745.2,2744.7,3.64327]
[1740220267149,0.7762,2745.2,2744.8,3.64322]
[1740220267704,0.7762,2745.2,2744.5,0.1497027]
[1740220267871,0.7762,2745.2,2744.6,3.64346]
[1740220268236,0.5093761,2745.1,2744.5,3.7933027]
[1740220268392,0.7762,2745.0,2744.5,3.7933027]
[1740220268587,0.7762,2745.0,2744.7,3.64327]
[1740220268850,0.7762,2745.0,2744.9,3.64311]
[1740220269017,0.7762,2745.0,2744.7,3.64325]
[1740220269891,0.7762,2745.0,2744.5,3.7933127]
[1740220270293,4.41922,2745.0,2744.5,0.1497027]
[1740220270503,0.441922,2744.9,2744.5,0.1497027]
[1740220271121,4.085052,2744.9,2744.5,0.1497027]
[1740220271824,0.441922,2744.9,2744.5,0.1497027]
[1740220272566,4.085042,2744.9,2744.5,0.1497027]
[1740220272759,0.441922,2744.9,2744.5,0.1497027]
[1740220272922,4.085062,2744.9,2744.5,0.1497027]
[1740220273120,0.4861262,2744.8,2744.5,0.1497027]
[1740220274248,0.441922,2744.9,2744.6,3.6435]
[1740220274462,0.7762,2745.0,2744.6,3.6435]
[1740220275316,3.64351,2744.6,2744.5,0.1497027]
[1740220275518,4.41971,2744.6,2744.5,0.1497027]
[1740220277144,4.96971,2744.6,2744.5,0.1497027]
[1740220277349,6.79010748,2744.6,2744.5,0.1497027]
[1740220277729,3.64453,2743.9,2743.2,3.64533]
[1740220277929,0.7762,2743.8,2743.4,3.64501]
[1740220278319,0.7762,2743.8,2743.3,3.64512]
[1740220278650,0.7762,2743.8,2743.4,3.6451]
[1740220278852,0.7762,2743.8,2743.6,3.64483]
[1740220279027,0.7762,2744.2,2743.3,3.0]
[1740220279232,0.7762,2744.2,2743.7,3.64465]
[1740220279474,0.7762,2744.2,2743.8,3.64457]
[1740220279840,0.7762,2744.2,2743.9,3.64434]
[1740220280378,8.96329,2744.8,2744.1,3.64407]
[1740220280555,0.7995,2745.1,2744.3,0.2994]
[1740220280734,0.444234,2745.0,2744.4,3.64366]
[1740220281132,4.087224,2745.0,2744.4,3.64366]
[1740220281437,4.087224,2745.0,2744.2,3.64402]
[1740220281642,4.087224,2745.0,2744.4,3.64373]
[1740220282568,0.444234,2745.0,2744.4,7.28746]
[1740220283069,0.444234,2745.0,2744.4,3.64373]
[1740220283769,0.444234,2745.0,2744.4,3.64371]
[1740220283937,0.444234,2745.0,2744.5,3.64363]
[1740220284138,4.1318694,2744.9,2744.2,3.64395]
[1740220285675,4.1318694,2744.9,2744.0,3.94367]
[1740220285676,3.64338,2744.7,2744.1,3.64416]
[1740220285840,3.64338,2744.7,2744.0,3.64421]
[1740220286044,0.7802,2744.8,2744.0,3.64421]
[1740220286238,9.59088483,2745.2,2743.9,3.0]
[1740220286239,0.7802,2745.2,2744.9,3.64311]
[1740220286464,0.7802,2745.2,2744.3,0.2994]
[1740220286465,0.7802,2745.2,2744.7,3.64327]
[1740220286662,0.7802,2745.2,2744.7,3.64328]
[1740220287075,0.7802,2745.2,2744.3,3.94326]
[1740220287263,3.64294,2745.1,2744.3,3.94319]
[1740220287457,0.7802,2745.2,2744.7,3.64329]
[1740220287669,0.7802,2745.2,2744.5,3.64362]
[1740220287875,4.42293,2745.2,2744.4,3.64376]
[1740220288049,4.085223,2745.1,2744.5,3.6436]
[1740220288260,0.442293,2745.1,2744.8,3.64324]
[1740220288457,0.7802,2745.2,2744.6,3.64342]
[1740220288688,0.7802,2745.2,2744.5,3.64352]
[1740220289186,4.42304,2745.2,2744.5,7.28706]
[1740220289353,4.42304,2745.2,2744.5,3.64352]
[1740220289354,0.7802,2745.2,2744.5,3.64352]
[1740220289548,0.7802,2745.2,2744.7,3.64337]
[1740220289753,0.7802,2745.2,2744.6,3.64342]
[1740220289955,4.085129,2745.1,2744.5,3.64358]
[1740220290491,0.442279,2745.1,2744.6,3.64346]
[1740220290873,0.442279,2745.1,2744.7,3.64328]
[1740220291192,0.7802,2745.2,2744.5,3.64358]
[1740220291687,0.7802,2745.2,2744.6,3.6435]
[1740220291891,4.42294,2745.2,2744.6,3.6435]
[1740220292087,0.7802,2745.2,2744.7,3.64336]
[1740220292516,1.586751,2745.2,2744.7,3.6433]
[1740220293588,1.586751,2745.2,2744.7,3.64329]
[1740220293796,5.229511,2745.2,2744.7,3.64329]
[1740220294184,1.586751,2745.2,2744.7,3.64329]
[1740220294382,0.7802,2745.2,2744.7,7.28657]
[1740220294586,0.7802,2745.2,2744.7,3.64328]
[1740220295489,0.7802,2745.2,2744.8,3.64324]
[1740220296806,0.7802,2745.2,2744.7,3.64328]
[1740220297103,0.7802,2745.2,2744.7,7.28659]
[1740220297308,0.7853,2745.8,2745.7,3.64205]
[1740220297520,5.32,2746.6,2745.5,3.64232]
[1740220297681,3.64153,2746.1,2745.1,0.2994]
[1740220298022,0.7853,2746.0,2745.1,0.2994]
[1740220298166,0.7853,2746.0,2745.6,3.64209]
[1740220298698,0.7853,2746.0,2745.9,3.64179]
[1740220299615,0.7853,2746.0,2745.7,3.64193]
[1740220300173,0.7853,2746.0,2745.5,3.64222]
[1740220300420,0.7853,2746.0,2745.7,3.64204]
[1740220300769,0.7853,2746.0,2745.5,3.64222]
[1740220301003,4.42696,2746.0,2745.3,8.94249]
[1740220301183,0.806849,2745.9,2745.3,3.64247]
[1740220301400,0.806849,2745.9,2745.5,3.64231]
[1740220301795,0.7853,2746.0,2745.5,3.64231]
[1740220302003,0.7853,2746.0,2745.6,3.64219]
[1740220302338,0.7853,2746.0,2745.7,3.64203]
[1740220302504,0.8294,2746.3,2746.0,3.64163]
[1740220303115,0.8294,2746.3,2745.8,3.64189]
[1740220304194,1.276449,2746.3,2745.8,3.64189]
[1740220305023,1.276449,2746.3,2745.8,7.28372]
[1740220305328,1.276449,2746.3,2745.8,3.64183]
[1740220305540,1.276449,2746.3,2745.9,3.64179]
[1740220305702,1.276449,2746.3,2745.9,3.64178]
[1740220306320,1.276449,2746.3,2745.8,7.28366]
[1740220306631,1.276449,2746.3,2745.8,3.64183]
[1740220307218,0.4917619,2746.2,2745.8,3.64183]
[1740220307425,1.276449,2746.3,2745.9,3.64179]
[1740220308252,1.276449,2746.3,2745.8,3.64183]
[1740220308389,1.276449,2746.3,2746.1,3.64152]
[1740220308594,0.32062,2746.6,2746.5,3.64099]
[1740220308595,0.7549,2746.6,2746.5,3.64099]
[1740220308802,5.32,2746.7,2746.5,3.64099]
[1740220309002,3.64098,2746.6,2746.0,3.64154]
[1740220309208,0.7549,2746.5,2746.0,3.64154]
[1740220309431,1.726488,2746.5,2746.0,3.64154]
[1740220309604,1.726488,2746.5,2745.8,0.301]
[1740220309940,1.726488,2746.5,2745.9,7.28346]
[1740220310244,1.726488,2746.5,2745.9,3.64168]
[1740220310545,5.367588,2746.5,2745.9,3.64168]
[1740220310742,4.5420168,2746.4,2745.7,3.64194]
[1740220311540,4.5420168,2746.4,2745.8,3.64184]
[1740220312640,0.9008568,2746.4,2745.9,3.64177]
[1740220313026,0.9008568,2746.4,2746.1,3.64152]
[1740220313385,0.9008568,2746.4,2745.9,3.64177]
[1740220313547,0.9008568,2746.4,2746.0,3.64158]
[1740220313726,0.9008568,2746.4,2746.1,3.64151]
[1740220314132,1.726488,2746.5,2746.1,3.64151]
[1740220314439,1.726488,2746.5,2746.0,3.64164]
[1740220315811,1.726488,2746.5,2745.9,7.28347]
[1740220316148,3.64136,2746.3,2745.4,3.94185]
[1740220316315,3.64142,2746.2,2745.6,3.64211]
[1740220316516,0.728278,2746.1,2745.6,3.64211]
[1740220316847,4.369818,2746.1,2745.6,3.64211]
[1740220317246,0.728278,2746.1,2745.6,3.64211]
[1740220317415,3.64155,2746.1,2745.5,3.64221]
[1740220317616,3.64141,2746.2,2745.6,3.64218]
[1740220318331,3.64141,2746.2,2745.7,3.64205]
[1740220318660,1.335767,2746.2,2745.4,0.2994]
[1740220318834,6.0749,2746.4,2745.4,0.2994]
[1740220320446,0.7776,2746.3,2745.4,0.2994]
[1740220327634,0.7776,2746.3,2745.4,3.2994]
[1740220328160,0.7776,2746.3,2745.4,3.63366013]
[1740220328621,0.7776,2746.3,2745.5,0.1140124]
[1740220328820,6.1279,2746.7,2745.6,0.2994]
[1740220329128,1.35679,2746.6,2745.6,0.2994]
[1740220329417,1.35679,2746.6,2745.6,0.56684379]
[1740220330182,6.1279,2746.7,2745.6,0.56684379]
[1740220330524,6.1279,2746.7,2745.6,0.68085619]
[1740220330733,6.1279,2746.7,2745.6,0.4134124]
[1740220331385,6.1279,2746.7,2745.6,0.2994]
[1740220331582,0.8079,2746.7,2745.6,5.71340785]
[1740220331924,0.82479,2746.6,2745.6,5.71340785]
[1740220332547,0.82479,2746.6,2746.1,3.64142]
[1740220332843,0.82479,2746.6,2746.1,7.28287]
[1740220333561,4.46565,2746.6,2746.1,3.64142]
[1740220333741,4.46565,2746.6,2746.0,3.64164]
[1740220334232,0.48225482,2746.5,2746.0,3.64164]
[1740220334416,0.48225482,2746.5,2745.9,3.64174]
[1740220334611,0.48225482,2746.5,2746.0,3.64165]
[1740220334839,0.48225482,2746.5,2745.9,3.64174]
[1740220335044,0.48225482,2746.5,2746.1,3.64152]
[1740220335822,4.12324482,2746.5,2745.9,3.64174]
[1740220336030,4.12324482,2746.5,2745.9,7.28338]
[1740220336444,4.12325482,2746.5,2746.0,3.64156]
[1740220336852,3.64127,2746.3,2745.7,3.64198]
[1740220337522,0.48225482,2746.5,2745.6,5.5994]
[1740220337721,3.64129,2746.3,2745.7,3.64197]
[1740220337948,3.64105,2746.5,2745.7,3.64197]
[1740220338145,3.64105,2746.5,2745.9,3.64178]
[1740220338349,3.64113,2746.4,2745.9,3.64178]
[1740220339637,7.28234,2746.4,2745.8,3.64191]
[1740220339845,8.010574,2746.4,2745.8,3.64191]
[1740220340337,4.369364,2746.4,2745.8,3.64191]
[1740220340537,3.64126,2746.3,2745.7,3.64196]
[1740220340760,3.64139,2746.2,2745.7,3.64196]
[1740220340937,4.44159,2746.2,2745.7,3.64196]
[1740220342260,0.8002,2746.2,2745.7,3.64196]
[1740220343670,4.44161,2746.2,2745.6,0.56769298]
[1740220343873,3.64201,2745.8,2745.3,5.5994]
[1740220344084,3.64174,2746.0,2745.3,3.94186]
[1740220344435,3.64152,2746.1,2745.5,3.64223]
[1740220344766,3.64153,2746.1,2745.5,3.64223]
[1740220344975,1.39201464,2746.0,2745.5,3.64223]
[1740220345352,1.39201464,2746.0,2745.5,7.28446]
[1740220345551,1.39201464,2746.0,2745.5,3.64223]
[1740220346773,1.39201464,2746.0,2745.3,3.94194]
[1740220346774,3.64196,2745.8,2745.3,3.94194]
[1740220346976,3.64186,2745.9,2745.3,3.94194]
[1740220348205,7.28378,2745.9,2745.3,3.94194]
[1740220348381,3.64188,2745.9,2745.3,3.64254]
[1740220348592,7.28379,2745.9,2745.3,3.64254]
[1740220348901,8.012169,2745.9,2745.3,3.64254]
[1740220349103,4.370259,2745.9,2745.3,3.64254]
[1740220349306,6.6371564,2746.2,2745.3,3.64254]
[1740220349610,3.6419,2745.9,2745.3,3.64254]
[1740220349777,3.64192,2745.8,2745.3,3.64254]
[1740220351385,0.7609,2745.7,2745.3,3.64254]
[1740220356213,0.7609,2745.7,2745.2,3.64269]
[1740220357338,0.7609,2745.1,2744.4,0.2994]
[1740220357478,0.7609,2745.1,2744.5,3.64361]
[1740220357831,3.6432,2744.9,2744.3,12.5876]
[1740220357982,3.64285,2745.1,2744.4,3.64378]
[1740220358182,3.64285,2745.1,2744.3,8.9438]
[1740220358378,3.64305,2745.0,2744.4,3.64369]
[1740220358642,3.64305,2745.0,2744.3,12.58762]
[1740220358794,4.37164,2745.0,2744.3,8.9438]
[1740220359009,0.72859,2745.0,2744.5,3.64363]
[1740220359217,3.64286,2745.1,2744.5,3.64363]
[1740220359713,3.643,2745.0,2744.5,3.64363]
[1740220359901,3.64286,2745.1,2744.5,3.64363]
[1740220360102,3.64286,2745.1,2744.3,8.9438]
[1740220360510,3.64286,2745.1,2744.5,3.64356]
[1740220360718,4.447599,2745.1,2744.5,3.64364]
[1740220361203,4.447599,2745.1,2744.6,3.64348]
[1740220361715,0.7609,2745.3,2744.5,0.2994]
[1740220361918,5.32,2745.5,2745.2,3.64262]
[1740220362125,4.42452,2745.8,2745.1,0.2994]
[1740220362280,3.64228,2745.6,2745.1,0.2994]
[1740220362484,3.64234,2745.5,2745.1,0.2994]
[1740220362685,3.64234,2745.5,2744.9,6.64311]
[1740220362896,7.28458,2745.6,2744.9,6.64311]
[1740220363211,3.64255,2745.4,2744.8,0.2994]
[1740220363512,3.64267,2745.3,2744.8,0.2994]
[1740220363876,4.371036,2745.4,2744.8,0.2994]
[1740220364092,4.371036,2745.4,2744.8,3.94263]
[1740220364500,0.7826,2745.3,2744.7,5.3]
[1740220364728,3.64286,2745.1,2744.7,5.3]
[1740220364889,3.64311,2745.0,2744.7,5.3]
[1740220365080,3.64325,2744.8,2744.7,5.3]
[1740220365415,3.64325,2744.8,2744.4,0.2994]
[1740220365625,3.64325,2744.8,2744.2,0.2994]
[1740220365777,4.46815,2744.8,2744.2,0.2994]
[1740220365979,4.46815,2744.8,2744.2,3.94337]
[1740220366182,0.8249,2744.8,2744.3,3.64389]
[1740220366704,4.46816,2744.8,2744.2,3.94337]
[1740220366903,0.8249,2744.8,2744.3,3.64386]
[1740220367798,1.267446,2745.1,2744.5,3.64363]
[1740220368002,0.8553016,2745.0,2744.5,3.64363]
[1740220368207,1.267446,2745.1,2744.6,3.64349]
[1740220368408,1.267446,2745.1,2744.7,3.64336]
[1740220369313,3.64301,2745.0,2744.4,3.64377]
[1740220369514,0.4910456,2744.9,2744.4,3.64377]
[1740220370816,0.4910456,2744.9,2743.8,12.36727824]
[1740220370817,0.8249,2744.6,2743.9,0.2994]
[1740220371025,3.64379,2744.4,2743.9,3.94383]
[1740220371393,7.2877,2744.4,2743.7,3.64466]
[1740220371592,3.64382,2744.4,2743.7,3.64466]
[1740220371822,3.64392,2744.3,2743.7,3.64466]
[1740220372028,4.372694,2744.3,2743.7,3.64466]
[1740220372335,4.372764,2744.3,2743.7,3.64466]
[1740220373288,4.372764,2744.3,2743.6,3.2994]
[1740220373289,3.64413,2744.2,2743.6,3.2994]
[1740220373516,3.64413,2744.2,2743.6,6.94422]
[1740220373697,3.64413,2744.2,2743.6,6.94423]
[1740220374122,4.4458024,2744.2,2743.6,6.94423]
[1740220374342,0.8016724,2744.2,2743.6,3.2994]
[1740220374486,0.8249,2744.6,2744.2,3.64393]
[1740220374691,6.1449,2744.9,2744.4,3.64366]
[1740220375193,6.1449,2744.9,2744.5,3.64362]
[1740220375393,0.8249,2744.9,2744.4,3.64366]
[1740220375611,0.8249,2744.9,2744.5,3.64361]
[1740220375805,1.271691,2744.9,2744.5,3.6436]
[1740220376885,1.271691,2744.9,2744.4,3.64366]
[1740220377932,1.271691,2744.9,2744.2,3.64399]
[1740220378125,4.914831,2744.9,2744.2,3.64393]
[1740220378343,3.6435,2744.7,2744.0,3.94365]
[1740220378500,3.6435,2744.7,2744.0,3.64425]
[1740220378501,0.8249,2744.4,2744.0,3.64425]
[1740220379594,0.8249,2744.4,2743.9,5.3]
[1740220379906,0.8249,2744.4,2744.0,3.64431]
[1740220380107,0.8249,2744.4,2743.8,6.94391]
[1740220380514,0.8249,2744.4,2743.9,3.64437]
[1740220380924,0.8249,2744.4,2744.0,3.64426]
[1740220381330,0.8249,2744.4,2743.8,6.94391]
[1740220381523,0.8249,2744.4,2743.9,3.64434]
[1740220381728,0.8249,2744.4,2743.8,6.94391]
[1740220381932,0.8249,2744.4,2744.0,3.64428]
[1740220382231,1.30818,2744.4,2744.0,3.64428]
[1740220382394,1.30818,2744.4,2743.8,6.64451]
[1740220382597,1.30818,2744.4,2743.8,6.64446]
[1740220383022,4.95197,2744.4,2743.8,6.64446]
[1740220383237,0.8177,2744.3,2743.6,3.64478]
[1740220383410,4.4617,2744.3,2743.6,3.64478]
[1740220383735,5.272237,2744.3,2743.7,3.64468]
[1740220384233,5.272237,2744.3,2743.6,3.64478]
[1740220384530,5.272237,2744.3,2743.7,3.6447]
[1740220384731,1.628237,2744.3,2743.7,3.64467]
[1740220384950,1.628237,2744.3,2743.8,3.64447]
[1740220385320,0.8177,2744.3,2743.8,3.64447]
[1740220385861,4.4617,2744.3,2743.7,3.64466]
[1740220386053,4.4617,2744.3,2743.4,3.2994]
[1740220386356,0.8177,2744.3,2743.8,3.64454]
[1740220386554,0.8177,2744.3,2744.1,3.64406]
[1740220387020,0.8177,2744.3,2744.0,3.64428]
[1740220387962,0.8177,2744.3,2744.2,3.64404]
[1740220388462,0.4,2744.4,2744.3,3.94331]
[1740220388758,0.4,2744.4,2744.3,3.64391]
[1740220388957,0.4,2744.4,2744.2,3.64404]
[1740220389326,0.7533,2744.3,2744.0,3.64427]
[1740220389526,0.7533,2744.3,2743.8,3.64455]
[1740220389724,0.7533,2744.3,2744.1,3.64417]
[1740220390371,4.39725,2744.3,2743.6,3.64474]
[1740220391032,0.7533,2744.3,2743.6,3.64474]
[1740220391229,0.7533,2744.3,2743.8,3.64457]
[1740220392560,0.4,2744.4,2744.3,3.94331]
[1740220392748,0.4,2744.4,2744.3,3.64391]
[1740220393156,0.4,2744.4,2743.9,6.64436]
[1740220393369,0.4,2744.4,2744.0,3.6442]
[1740220393688,0.7533,2744.3,2744.0,3.6442]
[1740220393865,0.7533,2744.3,2743.6,3.64479]
[1740220394047,3.64411,2744.2,2743.6,7.28956]
[1740220394245,3.64411,2744.2,2743.6,3.64475]
[1740220395766,3.64411,2744.2,2743.6,7.28949]
[1740220395944,3.64411,2744.2,2743.6,3.64474]
[1740220397785,4.39748,2744.1,2743.5,3.64497]
[1740220398161,4.39748,2744.1,2743.6,3.64484]
[1740220398978,4.39748,2744.1,2743.4,3.64505]
[1740220398979,4.39748,2744.1,2743.5,3.64489]
[1740220399845,0.7533,2744.1,2743.6,3.64483]
[1740220400478,4.39758,2744.1,2743.4,3.64505]
[1740220400685,4.9380771,2744.1,2743.4,3.64505]
[1740220400867,4.9380771,2744.1,2743.4,3.645]
[1740220401068,4.9380771,2744.1,2743.5,3.64497]
[1740220401681,4.9380771,2744.1,2743.3,6.64522]
[1740220401682,4.9380771,2744.1,2743.4,3.64502]
[1740220401874,1.2937971,2744.1,2743.6,3.64477]
[1740220402484,1.2937971,2744.1,2743.5,3.64489]
[1740220402799,1.2937971,2744.1,2743.5,3.64488]
[1740220403006,1.2937971,2744.1,2743.7,3.64469]
[1740220403506,1.2937971,2744.1,2743.7,3.64463]
[1740220403744,4.9379971,2744.1,2743.6,3.64484]
[1740220403908,0.49379971,2744.0,2743.6,3.64484]
[1740220404887,0.7533,2744.1,2743.8,3.6445]
[1740220405400,0.7533,2744.1,2743.7,3.64464]
[1740220405780,0.7533,2744.1,2743.9,3.64441]
[1740220408901,0.7533,2744.1,2744.0,3.64431]
[1740220409409,0.4,2744.4,2744.0,3.64431]
[1740220409613,0.4,2744.4,2744.3,3.64391]
[1740220410323,0.4,2744.4,2744.3,6.94331]
[1740220410821,0.4,2744.4,2744.3,6.64391]
[1740220411585,1.2298,2744.4,2744.3,3.64391]
[1740220412730,1.2298,2744.4,2744.2,3.64402]
[1740220413184,1.2298,2744.4,2744.0,5.3]
[1740220413797,1.717153,2744.4,2743.8,3.0]
[1740220414003,1.717153,2744.4,2743.8,6.64454]
[1740220414426,1.717153,2744.4,2743.6,3.64474]
[1740220414627,0.8298,2744.1,2743.6,3.64474]
[1740220416033,0.8298,2744.1,2743.6,3.64274]
[1740220417428,4.47408,2744.1,2743.4,8.94502]
[1740220417634,4.47408,2744.1,2743.4,3.64502]
[1740220418039,0.8298,2743.9,2743.4,3.64502]
[1740220418203,0.447413,2743.8,2743.4,3.64502]
[1740220419101,0.8298,2743.9,2743.4,3.64502]
[1740220420233,0.8298,2743.9,2743.4,3.64501]
[1740220422035,0.8298,2743.9,2743.4,7.29004]
[1740220422241,4.47426,2743.9,2743.4,3.64501]
[1740220422548,4.47426,2743.9,2743.1,5.305]
[1740220422549,3.64494,2743.6,2743.1,5.305]
[1740220422753,1.135494,2743.5,2743.1,5.305]
[1740220423459,4.780474,2743.5,2743.1,5.305]
[1740220423633,3.64514,2743.4,2743.1,0.005]
[1740220423818,1.135494,2743.5,2743.1,0.005]
[1740220423819,4.780494,2743.5,2743.1,0.005]
[1740220424643,3.64518,2743.4,2743.1,0.005]
[1740220424853,4.4878274,2743.3,2743.1,0.005]
[1740220425063,0.8425674,2743.3,2743.1,0.005]
[1740220425572,0.8277,2743.2,2743.1,0.005]
[1740220425869,4.47235,2743.8,2743.1,3.65042]
[1740220426175,0.8277,2743.7,2743.1,0.005]
[1740220426483,0.8277,2743.3,2743.1,0.005]
[1740220427269,0.8277,2743.3,2743.1,3.65042]
[1740220427449,0.8277,2743.3,2743.1,3.65039]
[1740220427821,0.8277,2743.6,2743.1,3.65039]
[1740220428262,0.8277,2743.6,2743.3,3.64522]
[1740220428524,1.44247,2743.6,2743.3,3.64522]
[1740220429324,1.44247,2743.6,2743.3,3.64322]
[1740220430956,1.44247,2743.6,2743.4,3.64506]
[1740220431273,1.44247,2743.6,2743.3,3.64322]
[1740220432035,1.44247,2743.6,2743.1,3.65046]
[1740220432257,1.44247,2743.6,2743.3,3.64515]
[1740220432451,1.44247,2743.6,2743.3,7.2903]
[1740220432654,1.44247,2743.6,2743.3,3.64515]
[1740220432852,0.8277,2743.6,2743.3,3.64515]
[1740220433223,0.8277,2743.6,2743.1,3.65043]
[1740220433452,4.47264,2743.6,2743.1,0.005]
[1740220434351,3.645,2743.5,2743.1,0.005]
[1740220435562,0.8277,2743.6,2743.1,3.65043]
[1740220435766,0.8277,2743.6,2743.2,3.64532]
[1740220435964,0.447243,2743.5,2743.2,3.64532]
[1740220436165,0.447243,2743.5,2743.1,3.65043]
[1740220436466,0.447243,2743.5,2743.1,0.005]
[1740220436763,0.8277,2743.3,2743.1,0.005]
[1740220437344,0.8277,2743.3,2743.1,3.65046]
[1740220438158,0.8277,2743.3,2743.1,3.65042]
[1740220439080,0.8277,2743.3,2743.1,3.6504]
[1740220439447,0.8277,2743.3,2743.1,0.005]
[1740220439448,4.47296,2743.3,2743.1,0.005]
[1740220439751,0.447296,2743.2,2743.1,0.005]
[1740220441279,4.092666,2743.2,2743.1,0.005]
[1740220441491,0.447296,2743.2,2743.1,0.005]
[1740220441801,0.8305,2744.1,2743.6,3.64484]
[1740220442597,0.8305,2744.1,2743.7,3.64468]
[1740220442797,0.8305,2744.1,2743.9,3.64444]
[1740220442995,0.8305,2744.1,2743.7,7.2893]
[1740220443197,0.8305,2744.3,2743.5,0.2994]
[1740220443402,4.29918,2744.2,2743.6,3.64472]
[1740220443896,7.94334,2744.2,2743.6,3.64472]
[1740220444404,4.29918,2744.2,2743.6,3.64472]
[1740220444701,0.65505,2744.2,2743.7,3.64459]
[1740220444866,0.8305,2744.3,2744.0,3.64424]
[1740220445062,0.4,2744.4,2744.0,3.64424]
[1740220445367,0.4,2744.4,2744.1,3.64416]
[1740220445564,0.4,2744.4,2744.3,3.64391]
[1740220447693,0.4,2744.4,2744.3,3.94331]
[1740220448501,0.4,2744.4,2744.3,4.24231]
[1740220452314,0.4,2744.4,2744.1,8.94405]
[1740220453310,0.4,2744.4,2744.1,3.64405]
[1740220453626,0.4,2744.4,2744.0,3.6443]
[1740220453793,0.4,2744.4,2744.1,3.64414]
[1740220454637,0.4,2744.4,2743.9,3.94375]
[1740220454937,0.4,2744.4,2743.9,3.64435]
[1740220455103,0.4,2744.4,2743.9,7.28871]
[1740220455441,0.4,2744.4,2743.9,3.64435]
[1740220455938,0.4,2744.4,2744.0,3.6443]
[1740220456647,0.4,2744.4,2744.1,3.64417]
[1740220457331,0.4,2744.4,2743.9,3.64435]
[1740220458155,0.8282,2744.2,2743.7,3.64469]
[1740220458316,0.8282,2744.2,2743.7,7.28938]
[1740220458517,0.8282,2744.2,2743.8,3.64454]
[1740220458943,0.8282,2744.2,2743.3,3.99648064]
[1740220458944,0.4,2744.4,2744.3,3.64391]
[1740220459635,0.4,2744.4,2744.1,3.64406]
[1740220460229,0.4,2744.4,2744.3,3.64391]
[1740220461147,0.4,2744.4,2744.2,3.64404]
[1740220461548,0.4,2744.4,2744.3,3.64391]
[1740220464872,0.4,2744.4,2744.2,3.64396]
[1740220464873,0.4,2744.4,2744.0,3.64424]
[1740220465074,0.4,2744.4,2744.1,3.64408]
[1740220465872,0.4,2744.4,2744.2,3.64403]
[1740220467397,0.4,2744.4,2744.0,7.28848]
[1740220467556,0.4,2744.4,2744.1,3.64413]
[1740220467758,0.887172,2744.4,2744.1,3.64413]
[1740220468373,0.887172,2744.4,2744.2,3.64404]
[1740220468656,0.887172,2744.4,2744.1,3.64413]
[1740220468657,0.4,2744.4,2744.0,3.6442]
[1740220469963,0.4,2744.4,2744.1,3.64417]
[1740220470199,0.4,2744.4,2744.0,3.6442]
[1740220471004,0.4,2744.4,2744.1,3.64409]
[1740220471555,0.4,2744.4,2743.8,0.2994]
[1740220471700,0.4,2744.4,2744.2,3.64397]
[1740220471906,0.4,2744.4,2744.1,3.64417]
[1740220473723,0.4,2744.4,2744.2,3.64393]
[1740220476835,0.4,2744.4,2744.1,7.28827]
[1740220477203,0.4,2744.4,2744.1,3.6441]
[1740220478537,0.4,2744.4,2744.2,3.64393]
[1740220479271,0.4,2744.4,2744.3,3.64391]
[1740220479477,0.4,2744.4,2744.1,3.6441]
[1740220479775,0.4,2744.4,2744.2,3.64397]
[1740220480337,0.4,2744.4,2744.3,3.64391]
[1740220485257,0.4,2744.4,2744.3,3.94331]
[1740220488590,1.1597,2744.4,2744.1,6.02301294]
[1740220488794,1.64003,2744.4,2744.1,9.66709294]
[1740220488958,1.1597,2744.4,2744.1,9.66709294]
[1740220489500,1.1597,2744.4,2744.1,8.94408]
[1740220490692,1.1597,2744.4,2744.3,3.64391]
[1740220490693,0.4,2744.4,2744.3,3.64391]
[1740220491373,0.4,2744.4,2744.1,3.64408]
[1740220492274,0.4,2744.4,2744.1,7.28817]